bitfinex/quotes_BTCUSD_20230111
["timestamp","ask_amount","ask_price","bid_price","bid_amount"]
[1673410916673,3.37739128,17420.0,17419.0,0.16449286]
[1673410918433,3.89396844,17420.0,17419.0,0.16449286]
[1673410921924,4.05886844,17420.0,17419.0,0.16449286]
[1673410922878,3.69957044,17420.0,17419.0,0.16449286]
[1673410923125,4.05886844,17420.0,17419.0,0.16449286]
[1673410923373,3.69957044,17420.0,17419.0,0.16449286]
[1673410923627,4.05886844,17420.0,17419.0,0.16449286]
[1673410926720,3.69957044,17420.0,17419.0,0.16449286]
[1673410927241,3.18299328,17420.0,17419.0,0.16449286]
[1673410927471,3.69957044,17420.0,17419.0,0.16449286]
[1673410927960,4.05886844,17420.0,17419.0,0.16449286]
[1673410929459,4.63292044,17420.0,17419.0,0.16449286]
[1673410932458,4.05886844,17420.0,17419.0,0.16449286]
[1673410932723,5.22686811,17420.0,17419.0,0.16439969]
[1673410933219,5.22686811,17420.0,17419.0,0.16037426]
[1673410935487,4.62670555,17420.0,17419.0,0.16037426]
[1673410935738,5.28642969,17420.0,17419.0,0.16037426]
[1673410936823,4.71237769,17420.0,17419.0,0.16037426]
[1673410937072,5.28642969,17420.0,17419.0,0.16037426]
[1673410938096,4.71237769,17420.0,17419.0,0.16037426]
[1673410939361,4.71237769,17420.0,17419.0,0.15474527]
[1673410939871,5.28642969,17420.0,17419.0,0.15474527]
[1673410941610,4.71237769,17420.0,17419.0,0.15474527]
[1673410941858,4.87627769,17420.0,17419.0,0.15474527]
[1673410944608,4.51697969,17420.0,17419.0,0.15474527]
[1673410945117,4.00040253,17420.0,17419.0,0.15474527]
[1673410946657,4.87627769,17420.0,17419.0,0.15474527]
[1673410947429,5.45032969,17420.0,17419.0,0.15474527]
[1673410947693,4.87627769,17420.0,17419.0,0.15474527]
[1673410947936,4.51697969,17420.0,17419.0,0.15474527]
[1673410948186,4.87627769,17420.0,17419.0,0.15474527]
[1673410950918,4.51697969,17420.0,17419.0,0.15474527]
[1673410951882,4.35207969,17420.0,17419.0,0.15474527]
[1673410952847,4.71137769,17420.0,17419.0,0.15474527]
[1673410953626,5.28542969,17420.0,17419.0,0.15474527]
[1673410954108,4.92613169,17420.0,17419.0,0.15474527]
[1673410954361,5.28542969,17420.0,17419.0,0.15474527]
[1673410954863,4.92613169,17420.0,17419.0,0.15474527]
[1673410955121,5.28542969,17420.0,17419.0,0.15474527]
[1673410956081,4.71137769,17420.0,17419.0,0.15474527]
[1673410960497,4.71137769,17420.0,17419.0,0.15463218]
[1673410961008,5.28542969,17420.0,17419.0,0.15463218]
[1673410962083,4.92613169,17420.0,17419.0,0.15463218]
[1673410962334,5.28542969,17420.0,17419.0,0.15463218]
[1673410963064,4.35207969,17420.0,17419.0,0.15463218]
[1673410963326,4.71137769,17420.0,17419.0,0.15463218]
[1673410963553,5.28542969,17420.0,17419.0,0.15463218]
[1673410964673,5.28535246,17420.0,17419.0,0.15463218]
[1673410966202,4.71130046,17420.0,17419.0,0.15463218]
[1673410967210,5.28535246,17420.0,17419.0,0.15463218]
[1673410974207,4.71130046,17420.0,17419.0,0.15463218]
[1673410974709,5.28535246,17420.0,17419.0,0.15463218]
[1673410974945,4.92605446,17420.0,17419.0,0.15463218]
[1673410975193,5.28535246,17420.0,17419.0,0.15463218]
[1673410975434,4.92605446,17420.0,17419.0,0.15463218]
[1673410975697,5.28535246,17420.0,17419.0,0.15463218]
[1673410976441,4.92605446,17420.0,17419.0,0.15463218]
[1673410976687,5.28535246,17420.0,17419.0,0.15463218]
[1673410979899,4.96971197,17420.0,17419.0,0.15463218]
[1673410980156,5.59216752,17420.0,17419.0,0.15463218]
[1673410980406,4.96971197,17420.0,17419.0,0.15463218]
[1673410980664,5.69222176,17420.0,17419.0,0.15463218]
[1673410980912,6.20880946,17420.0,17419.0,0.15463218]
[1673410981157,5.69222176,17420.0,17419.0,0.15463218]
[1673410981411,6.20880899,17420.0,17419.0,0.15463218]
[1673410982183,5.69222176,17420.0,17419.0,0.15463218]
[1673410985725,5.69222176,17420.0,17419.0,0.15457176]
[1673410986253,4.96971197,17420.0,17419.0,0.15457176]
[1673410987239,5.64467397,17420.0,17419.0,0.15457176]
[1673410987519,4.96971197,17420.0,17419.0,0.15457176]
[1673410987773,5.68184325,17420.0,17419.0,0.15457176]
[1673410988764,5.66970538,17420.0,17419.0,0.15457176]
[1673410988991,5.66970538,17420.0,17419.0,7.835e-05]
[1673410989237,5.66970538,17420.0,17416.0,0.6]
[1673410989238,0.3,17419.0,17416.0,0.6]
[1673410989480,0.73040739,17417.0,17416.0,0.6]
[1673410989737,0.43040739,17417.0,17416.0,0.6]
[1673410990750,0.43040739,17417.0,17416.0,0.605]
[1673410991006,0.43040739,17417.0,17416.0,0.6]
[1673410991263,0.50240739,17417.0,17416.0,0.605]
[1673410992014,0.50240739,17417.0,17416.0,0.60507836]
[1673410992259,0.50240739,17417.0,17416.0,0.605]
[1673410993488,0.50240739,17417.0,17416.0,0.60507836]
[1673410993986,0.50240739,17417.0,17416.0,0.605]
[1673410995504,0.8467333,17417.0,17416.0,0.605]
[1673410995762,0.50240739,17417.0,17416.0,0.605]
[1673410996496,1.8489375,17417.0,17416.0,0.605]
[1673410996746,2.02110045,17417.0,17416.0,0.605]
[1673410998780,2.19326341,17417.0,17416.0,0.605]
[1673410999523,2.4515354,17417.0,17416.0,0.605]
[1673410999780,2.02112801,17417.0,17416.0,0.605]
[1673411000014,2.4515354,17417.0,17416.0,0.605]
[1673411000517,2.02112801,17417.0,17416.0,0.605]
[1673411001286,2.19326341,17417.0,17416.0,0.605]
[1673411001534,2.19326341,17417.0,17416.0,0.005]
[1673411001783,3.19506087,17417.0,17416.0,0.005]
[1673411002062,2.83576287,17417.0,17416.0,0.005]
[1673411004552,3.19506087,17417.0,17416.0,0.005]
[1673411004794,3.17111887,17417.0,17416.0,0.005]
[1673411005281,2.81182087,17417.0,17416.0,0.005]
[1673411005533,3.17111887,17417.0,17416.0,0.005]
[1673411006292,2.81182087,17417.0,17416.0,0.005]
[1673411006725,3.17111887,17417.0,17416.0,0.005]
[1673411006987,2.81182087,17417.0,17416.0,0.005]
[1673411007521,3.17111887,17417.0,17416.0,0.005]
[1673411007765,2.81182087,17417.0,17416.0,0.005]
[1673411008523,2.81159357,17417.0,17416.0,0.005]
[1673411008781,4.31941183,17417.0,17416.0,0.005]
[1673411009026,3.96011383,17417.0,17416.0,0.005]
[1673411011831,4.12501383,17417.0,17416.0,0.005]
[1673411012343,4.04731004,17417.0,17416.0,0.005]
[1673411012598,5.82592215,17417.0,17416.0,0.005]
[1673411013433,5.91386415,17417.0,17416.0,0.003]
[1673411014185,0.85961948,17416.0,17415.0,0.40294845]
[1673411014435,4.65268638,17416.0,17415.0,0.40294845]
[1673411014950,5.08256838,17416.0,17415.0,0.40294845]
[1673411016452,5.65675238,17416.0,17415.0,0.40294845]
[1673411016712,5.79275238,17416.0,17415.0,0.40594845]
[1673411016952,5.43345438,17416.0,17415.0,0.40594845]
[1673411017160,5.79275238,17416.0,17415.0,0.40594845]
[1673411017699,5.2331329,17416.0,17415.0,0.40594845]
[1673411017951,4.8032509,17416.0,17415.0,0.40594845]
[1673411018456,5.41060732,17416.0,17415.0,0.40594845]
[1673411018713,5.41060732,17416.0,17415.0,0.15594845]
[1673411018714,6.43427691,17416.0,17415.0,0.15594845]
[1673411018981,5.82692049,17416.0,17415.0,0.15594845]
[1673411020248,6.49314116,17416.0,17415.0,0.15594845]
[1673411021047,5.3446209,17416.0,17415.0,0.15594845]
[1673411021280,5.68834375,17416.0,17415.0,0.15594845]
[1673411021533,6.49325371,17416.0,17415.0,0.15594845]
[1673411021791,5.3446209,17416.0,17415.0,0.15594845]
[1673411022547,5.6883193,17416.0,17415.0,0.15594845]
[1673411022772,5.3446209,17416.0,17415.0,0.15594845]
[1673411023027,6.49325859,17416.0,17415.0,0.15594845]
[1673411023275,5.3446209,17416.0,17415.0,0.15594845]
[1673411023497,6.49325765,17416.0,17415.0,0.15594845]
[1673411024254,5.82703698,17416.0,17415.0,0.15594845]
[1673411025050,5.82690407,17416.0,17415.0,0.15594845]
[1673411025325,5.39731506,17416.0,17415.0,0.15594845]
[1673411027080,5.97670612,17416.0,17415.0,0.15594845]
[1673411027552,5.97583757,17416.0,17415.0,0.15594845]
[1673411028525,5.96306684,17416.0,17415.0,0.15594845]
[1673411029283,6.39256781,17416.0,17415.0,0.15594845]
[1673411029535,5.96306684,17416.0,17415.0,0.15594845]
[1673411030027,6.39256696,17416.0,17415.0,0.15594845]
[1673411034674,5.96306684,17416.0,17415.0,0.15594845]
[1673411036962,5.87510322,17416.0,17415.0,0.15594845]
[1673411037217,6.54554737,17416.0,17415.0,0.15594845]
[1673411037730,6.54554737,17416.0,17413.0,0.00663853]
[1673411037731,0.13315302,17414.0,17413.0,0.00663853]
[1673411038023,3.29003166,17414.0,17413.0,0.00663853]
[1673411038279,4.24947848,17414.0,17413.0,0.00663853]
[1673411039066,4.38447848,17414.0,17413.0,0.00963853]
[1673411039845,4.24947848,17414.0,17413.0,0.00663853]
[1673411040081,4.24947848,17414.0,17413.0,0.00863853]
[1673411040082,4.38547848,17414.0,17413.0,0.00863853]
[1673411040337,4.9836989,17414.0,17413.0,0.00863853]
[1673411040602,4.63990532,17414.0,17413.0,0.00863853]
[1673411040849,5.78863718,17414.0,17413.0,0.00863853]
[1673411041350,5.65263718,17414.0,17413.0,0.00663853]
[1673411041607,4.47650532,17414.0,17413.0,0.00863853]
[1673411041863,6.1994904,17414.0,17413.0,0.00863853]
[1673411042869,5.60126998,17414.0,17413.0,0.00863853]
[1673411043111,6.28716012,17414.0,17413.0,0.00863853]
[1673411043359,5.60126998,17414.0,17413.0,0.00863853]
[1673411043571,6.29909893,17414.0,17413.0,0.00863853]
[1673411044565,5.81489618,17414.0,17413.0,0.00863853]
[1673411044817,6.24489669,17414.0,17413.0,0.00863853]
[1673411045084,6.24485881,17414.0,17413.0,0.00863853]
[1673411045588,5.81489618,17414.0,17413.0,0.00863853]
[1673411045837,5.45559818,17414.0,17413.0,0.00863853]
[1673411046080,6.24486087,17414.0,17413.0,0.00863853]
[1673411046550,5.81489618,17414.0,17413.0,0.00863853]
[1673411048102,5.68174316,17414.0,17413.0,0.00863853]
[1673411049560,5.03837499,17414.0,17413.0,0.00863853]
[1673411049777,5.66289453,17414.0,17413.0,0.00863853]
[1673411051765,5.03837499,17414.0,17413.0,0.00863853]
[1673411052226,5.55487052,17414.0,17413.0,0.00863853]
[1673411052734,6.07927151,17414.0,17413.0,0.00863853]
[1673411054200,5.56277598,17414.0,17413.0,0.00863853]
[1673411055441,5.03837499,17414.0,17413.0,0.00863853]
[1673411055728,5.73155133,17414.0,17413.0,0.00863853]
[1673411056781,5.03837499,17414.0,17413.0,0.00863853]
[1673411057073,5.72130806,17414.0,17413.0,0.00863853]
[1673411057994,5.03837499,17414.0,17413.0,0.00863853]
[1673411058236,5.66946353,17414.0,17413.0,0.00863853]
[1673411058738,5.03837499,17414.0,17413.0,0.00863853]
[1673411058991,5.68708112,17414.0,17413.0,0.00863853]
[1673411059704,6.24507108,17414.0,17413.0,0.00863853]
[1673411059952,5.55487052,17414.0,17413.0,0.00863853]
[1673411061208,5.55487052,17414.0,17413.0,0.0085323]
[1673411061209,6.23192803,17414.0,17413.0,0.0085323]
[1673411061452,5.53948061,17414.0,17413.0,0.0085323]
[1673411061718,6.23165303,17414.0,17413.0,0.0085323]
[1673411061957,5.8788575,17414.0,17413.0,0.0085323]
[1673411062201,5.71829552,17414.0,17413.0,0.0085323]
[1673411069616,6.39927481,17414.0,17413.0,0.0085323]
[1673411070393,5.71829552,17414.0,17413.0,0.0085323]
[1673411071125,6.27473172,17414.0,17413.0,0.0085323]
[1673411072082,5.71829552,17414.0,17413.0,0.0085323]
[1673411073358,6.2404194,17414.0,17413.0,0.0085323]
[1673411074628,5.71829552,17414.0,17413.0,0.0085323]
[1673411075117,6.40499785,17414.0,17413.0,0.0085323]
[1673411075360,6.35645988,17414.0,17413.0,0.0085323]
[1673411077634,5.71829552,17414.0,17413.0,0.0085323]
[1673411077890,6.03255221,17414.0,17413.0,0.0085323]
[1673411078144,0.22790219,17412.0,17411.0,0.00257569]
[1673411078407,2.85865696,17412.0,17411.0,0.00257569]
[1673411078666,2.72823569,17412.0,17411.0,0.00257569]
[1673411078928,3.02823569,17412.0,17411.0,0.00257569]
[1673411079196,3.45881486,17412.0,17411.0,0.00257569]
[1673411079462,3.99959563,17412.0,17411.0,0.00257569]
[1673411079713,3.99959563,17412.0,17411.0,0.00457569]
[1673411079714,4.13459563,17412.0,17411.0,0.00457569]
[1673411080226,4.2578588,17412.0,17411.0,0.00465407]
[1673411080567,4.25790949,17412.0,17411.0,0.00457569]
[1673411081287,3.91345961,17412.0,17411.0,0.00457569]
[1673411082802,4.2579175,17412.0,17411.0,0.00457569]
[1673411083309,3.91345961,17412.0,17411.0,0.00457569]
[1673411092146,3.48288059,17412.0,17411.0,0.00457569]
[1673411093165,3.9135456,17412.0,17411.0,0.00457569]
[1673411093678,3.48288059,17412.0,17411.0,0.00457569]
[1673411093941,3.48288059,17412.0,17411.0,0.25457569]
[1673411098435,3.91354646,17412.0,17411.0,0.25457569]
[1673411098900,3.48288059,17412.0,17411.0,0.25457569]
[1673411099148,3.91355876,17412.0,17411.0,0.25457569]
[1673411101156,3.91355876,17412.0,17411.0,0.43982763]
[1673411104015,3.96672551,17412.0,17411.0,0.43982763]
[1673411104277,4.78014761,17412.0,17411.0,0.4397595]
[1673411104539,5.35446361,17412.0,17411.0,0.4397595]
[1673411106404,5.35446361,17412.0,17411.0,0.5397595]
[1673411107501,5.71376161,17412.0,17411.0,0.5397595]
[1673411107789,5.35446361,17412.0,17411.0,0.5397595]
[1673411110292,4.78014761,17412.0,17411.0,0.5397595]
[1673411112622,5.35446361,17412.0,17411.0,0.5397595]
[1673411115451,5.2135191,17412.0,17411.0,0.5397595]
[1673411115685,6.14537289,17412.0,17411.0,0.5397595]
[1673411115945,5.78607489,17412.0,17411.0,0.5397595]
[1673411116199,6.14537289,17412.0,17411.0,0.5397595]
[1673411116470,5.78607489,17412.0,17411.0,0.5397595]
[1673411116675,6.14537289,17412.0,17411.0,0.5397595]
[1673411116949,5.78607489,17412.0,17411.0,0.5397595]
[1673411117206,6.14537289,17412.0,17411.0,0.5397595]
[1673411117712,5.78607489,17412.0,17411.0,0.5397595]
[1673411117958,6.14537289,17412.0,17411.0,0.5397595]
[1673411118460,5.78607489,17412.0,17411.0,0.5397595]
[1673411118973,6.14537289,17412.0,17411.0,0.5397595]
[1673411119528,5.26939078,17412.0,17411.0,0.5397595]
[1673411119831,6.14537289,17412.0,17411.0,0.5397595]
[1673411120081,5.62868878,17412.0,17411.0,0.5397595]
[1673411120651,5.78607489,17412.0,17411.0,0.5397595]
[1673411120909,6.14537289,17412.0,17411.0,0.5397595]
[1673411123224,6.14529831,17412.0,17411.0,0.5397595]
[1673411125775,5.78600031,17412.0,17411.0,0.5397595]
[1673411126030,6.14529831,17412.0,17411.0,0.5397595]
[1673411126294,5.78600031,17412.0,17411.0,0.5397595]
[1673411126575,5.6286142,17412.0,17411.0,0.5397595]
[1673411127077,5.2693162,17412.0,17411.0,0.5397595]
[1673411127289,6.14529831,17412.0,17411.0,0.5397595]
[1673411128057,5.2693162,17412.0,17411.0,0.5397595]
[1673411128313,5.6286142,17412.0,17411.0,0.5397595]
[1673411128577,4.9364626,17412.0,17411.0,0.5397595]
[1673411128834,4.5771646,17412.0,17411.0,0.5397595]
[1673411129093,4.9364626,17412.0,17411.0,0.5397595]
[1673411129598,4.87355364,17412.0,17411.0,0.5397595]
[1673411129856,5.23285164,17412.0,17411.0,0.5397595]
[1673411130633,4.87355364,17412.0,17411.0,0.5397595]
[1673411131930,5.23285164,17412.0,17411.0,0.5397595]
[1673411132156,4.87355364,17412.0,17411.0,0.5397595]
[1673411132407,5.23285164,17412.0,17411.0,0.5397595]
[1673411132915,4.87355364,17412.0,17411.0,0.5397595]
[1673411133167,5.23285164,17412.0,17411.0,0.5397595]
[1673411134162,5.74953575,17412.0,17411.0,0.5397595]
[1673411134415,5.23285164,17412.0,17411.0,0.4397595]
[1673411134659,5.74953575,17412.0,17411.0,0.4397595]
[1673411134905,4.87355364,17412.0,17411.0,0.4397595]
[1673411135152,5.23285164,17412.0,17411.0,0.4397595]
[1673411135895,5.74953575,17412.0,17411.0,0.4397595]
[1673411136390,5.39023775,17412.0,17411.0,0.4397595]
[1673411136644,5.74953575,17412.0,17411.0,0.4397595]
[1673411136894,5.39023775,17412.0,17411.0,0.4397595]
[1673411137160,5.74953575,17412.0,17411.0,0.4397595]
[1673411141769,5.91403575,17412.0,17411.0,0.4397595]
[1673411144810,5.90739814,17412.0,17411.0,0.4397595]
[1673411146032,5.90739814,17412.0,17411.0,0.43969295]
[1673411148556,5.54810014,17412.0,17411.0,0.43969295]
[1673411150726,5.90739814,17412.0,17411.0,0.43969295]
[1673411152768,6.21693359,17412.0,17411.0,0.43969295]
[1673411153024,6.73348093,17412.0,17411.0,0.43969295]
[1673411153278,6.73353092,17412.0,17411.0,0.43969295]
[1673411153532,5.90731136,17412.0,17411.0,0.43969295]
[1673411153794,6.73355625,17412.0,17411.0,0.43969295]
[1673411154300,6.21695892,17412.0,17411.0,0.43969295]
[1673411154776,5.90726443,17412.0,17411.0,0.43969295]
[1673411156344,6.21694554,17412.0,17411.0,0.43969295]
[1673411156561,6.73351039,17412.0,17411.0,0.43969295]
[1673411156781,5.9072722,17412.0,17411.0,0.43969295]
[1673411158550,5.90723766,17412.0,17411.0,0.43969295]
[1673411158793,6.73381446,17412.0,17411.0,0.43969295]
[1673411159032,5.90724513,17412.0,17411.0,0.43969295]
[1673411159531,6.73379717,17412.0,17411.0,0.43969295]
[1673411159782,5.90724513,17412.0,17411.0,0.43969295]
[1673411161784,5.32253369,17412.0,17411.0,0.43969295]
[1673411162033,5.32253369,17412.0,17411.0,0.43858351]
[1673411163615,5.89510202,17412.0,17411.0,0.43858351]
[1673411169579,5.32253369,17412.0,17411.0,0.43858351]
[1673411169827,5.95130577,17412.0,17411.0,0.43858351]
[1673411170079,5.32253369,17412.0,17411.0,0.43858351]
[1673411170842,5.63423372,17412.0,17411.0,0.43858351]
[1673411171599,6.34969695,17412.0,17411.0,0.43858351]
[1673411172073,6.33998633,17412.0,17411.0,0.43858351]
[1673411173088,5.6245231,17412.0,17411.0,0.43858351]
[1673411173822,6.21016675,17412.0,17411.0,0.43858351]
[1673411174068,5.89844758,17412.0,17411.0,0.43858351]
[1673411174800,6.72467756,17412.0,17411.0,0.43858351]
[1673411175548,5.89847758,17412.0,17411.0,0.43858351]
[1673411177069,6.72482651,17412.0,17411.0,0.43858351]
[1673411177311,6.7248706,17412.0,17411.0,0.43858351]
[1673411177553,6.20832864,17412.0,17411.0,0.43858351]
[1673411179224,6.72493107,17412.0,17411.0,0.43858351]
[1673411179484,6.20832864,17412.0,17411.0,0.43858351]
[1673411179976,6.72494515,17412.0,17411.0,0.43858351]
[1673411180824,5.89855213,17412.0,17411.0,0.43858351]
[1673411181916,6.06195213,17412.0,17411.0,0.43858351]
[1673411183958,5.70265413,17412.0,17411.0,0.43858351]
[1673411184215,6.06195213,17412.0,17411.0,0.43858351]
[1673411185727,6.06195213,17412.0,17411.0,0.43355632]
[1673411185981,5.70265413,17412.0,17411.0,0.43355632]
[1673411186289,6.06195213,17412.0,17411.0,0.43355632]
[1673411186541,5.70265413,17412.0,17411.0,0.43355632]
[1673411186796,6.06195213,17412.0,17411.0,0.43355632]
[1673411187278,5.70265413,17412.0,17411.0,0.43355632]
[1673411187524,6.06195213,17412.0,17411.0,0.43355632]
[1673411190545,5.70265413,17412.0,17411.0,0.43355632]
[1673411191489,6.06195213,17412.0,17411.0,0.43355632]
[1673411193481,5.70265413,17412.0,17411.0,0.43355632]
[1673411193701,6.06195213,17412.0,17411.0,0.43355632]
[1673411194188,5.89745213,17412.0,17411.0,0.43355632]
[1673411199857,5.31180848,17412.0,17411.0,0.43355632]
[1673411200101,5.9332351,17412.0,17411.0,0.43355632]
[1673411201851,5.7698351,17412.0,17411.0,0.43355632]
[1673411205916,6.59201259,17412.0,17411.0,0.43355632]
[1673411207197,5.7698351,17412.0,17411.0,0.43355632]
[1673411208694,5.6348351,17412.0,17411.0,0.43355632]
[1673411208946,5.7698351,17412.0,17411.0,0.43355632]
[1673411210218,5.7698351,17412.0,17411.0,0.4334799]
[1673411211693,5.4105371,17412.0,17411.0,0.4334799]
[1673411211954,5.5742371,17412.0,17411.0,0.4334799]
[1673411212455,5.9335351,17412.0,17411.0,0.4334799]
[1673411218465,5.61447141,17412.0,17411.0,0.4334799]
[1673411218718,5.77937141,17412.0,17411.0,0.4334799]
[1673411218971,6.42948045,17412.0,17411.0,0.4334799]
[1673411219717,6.42948045,17412.0,17409.0,0.00566638]
[1673411219718,0.3227277,17410.0,17409.0,0.00566638]
[1673411219976,4.4160034,17410.0,17409.0,0.00566638]
[1673411220228,4.7064416,17410.0,17409.0,0.00566638]
[1673411220982,5.25410389,17410.0,17409.0,0.00566638]
[1673411221773,5.38910389,17410.0,17409.0,0.00566638]
[1673411223755,4.81472189,17410.0,17409.0,0.00566638]
[1673411224006,5.1584176,17410.0,17409.0,0.00566638]
[1673411224250,3.35989234,17410.0,17409.0,0.00566638]
[1673411224502,3.18772034,17410.0,17409.0,0.00566638]
[1673411224754,3.18778034,17410.0,17409.0,0.00566638]
[1673411225012,2.91623131,17410.0,17409.0,0.00566638]
[1673411225802,2.66651694,17410.0,17409.0,0.00566638]
[1673411230122,3.28481951,17410.0,17409.0,0.00566638]
[1673411230335,3.28481948,17410.0,17409.0,0.00566638]
[1673411230811,3.28475948,17410.0,17409.0,0.00566638]
[1673411231065,3.45693148,17410.0,17409.0,0.00566638]
[1673411231558,4.06003886,17410.0,17409.0,0.00566638]
[1673411231811,3.29233148,17410.0,17409.0,0.00566638]
[1673411232335,3.55057345,17410.0,17409.0,0.00566638]
[1673411232591,3.12017689,17410.0,17409.0,0.00566638]
[1673411232851,3.12008075,17410.0,17409.0,0.00566638]
[1673411233100,2.50187435,17410.0,17409.0,0.00566638]
[1673411233822,3.12001105,17410.0,17409.0,0.00566638]
[1673411235546,3.55040993,17410.0,17409.0,0.00566638]
[1673411235785,3.12001105,17410.0,17409.0,0.00566638]
[1673411236528,3.12000515,17410.0,17409.0,0.00566638]
[1673411236771,2.50187435,17410.0,17409.0,0.00566638]
[1673411237339,3.11990743,17410.0,17409.0,0.00566638]
[1673411238368,2.50187435,17410.0,17409.0,0.00566638]
[1673411238837,3.1198256,17410.0,17409.0,0.00566638]
[1673411239841,5.04476352,17410.0,17409.0,0.00566638]
[1673411240604,5.61914552,17410.0,17409.0,0.00566638]
[1673411240875,5.29641782,17410.0,17409.0,0.00566638]
[1673411241839,4.95212542,17410.0,17409.0,0.00566638]
[1673411244341,4.95212542,17410.0,17409.0,0.00559226]
[1673411245068,4.52172654,17410.0,17409.0,0.00559226]
[1673411245311,4.9520459,17410.0,17409.0,0.00559226]
[1673411245814,4.3776639,17410.0,17409.0,0.00559226]
[1673411246057,4.72191472,17410.0,17409.0,0.00559226]
[1673411246559,3.57297352,17410.0,17409.0,0.00559226]
[1673411246817,2.96913139,17410.0,17409.0,0.00559226]
[1673411247316,3.57175579,17410.0,17409.0,0.00559226]
[1673411247825,4.7207044,17410.0,17409.0,0.00559226]
[1673411248049,3.57175579,17410.0,17409.0,0.00559226]
[1673411248331,4.72071305,17410.0,17409.0,0.00559226]
[1673411250826,3.57175579,17410.0,17409.0,0.00559226]
[1673411251050,2.96913139,17410.0,17409.0,0.00559226]
[1673411251298,3.57176772,17410.0,17409.0,0.00559226]
[1673411252190,3.57176583,17410.0,17409.0,0.00559226]
[1673411252434,2.79698025,17410.0,17409.0,0.00559226]
[1673411252694,2.179029,17410.0,17409.0,0.00559226]
[1673411253402,2.35118476,17410.0,17409.0,0.00559226]
[1673411253646,2.00693394,17410.0,17409.0,0.00559226]
[1673411255119,2.35117383,17410.0,17409.0,0.00559226]
[1673411255369,2.00692301,17410.0,17409.0,0.00559226]
[1673411259454,1.41297534,17410.0,17409.0,0.00559226]
[1673411259978,1.11297534,17410.0,17409.0,0.00559226]
[1673411262039,1.11297534,17410.0,17409.0,0.25559226]
[1673411262550,0.30714483,17410.0,17409.0,1.02059226]
[1673411262800,0.135,17410.0,17409.0,2.26900189]
[1673411263047,0.135,17410.0,17409.0,2.84341689]
[1673411263296,0.135,17410.0,17409.0,3.14341689]
[1673411263812,0.135,17410.0,17409.0,3.48717422]
[1673411264061,0.135,17410.0,17409.0,3.14364337]
[1673411264315,0.135,17410.0,17409.0,3.48717466]
[1673411264560,0.68336151,17411.0,17409.0,3.14364381]
[1673411264810,0.111,17410.0,17409.0,2.73616119]
[1673411265075,0.111,17410.0,17409.0,3.14548832]
[1673411265836,0.68336151,17411.0,17409.0,2.89916119]
[1673411266079,0.038,17410.0,17409.0,2.73616119]
[1673411266328,0.038,17410.0,17409.0,2.90116119]
[1673411266329,0.03790695,17410.0,17409.0,2.90116119]
[1673411266574,0.68336151,17411.0,17409.0,2.90116119]
[1673411266575,0.68336151,17411.0,17409.0,3.19916119]
[1673411266821,0.68336151,17411.0,17409.0,2.77649725]
[1673411267074,0.72136151,17411.0,17409.0,2.77849725]
[1673411267319,0.68336151,17411.0,17409.0,2.77649725]
[1673411267564,0.038,17410.0,17409.0,3.03616119]
[1673411267814,0.68336151,17411.0,17409.0,2.94129725]
[1673411268070,0.68336151,17411.0,17410.0,0.465]
[1673411268316,0.68336151,17411.0,17410.0,0.165]
[1673411268571,0.68336151,17411.0,17410.0,1.313764]
[1673411268810,0.72136151,17411.0,17410.0,1.313764]
[1673411269064,0.68336151,17411.0,17410.0,1.313764]
[1673411269311,0.79436151,17411.0,17410.0,1.565764]
[1673411270524,0.79436151,17411.0,17410.0,0.991382]
[1673411275793,0.79430151,17411.0,17410.0,0.991382]
[1673411276037,0.111,17411.0,17410.0,0.991382]
[1673411280318,0.111,17411.0,17410.0,1.565764]
[1673411281580,0.111,17411.0,17410.0,1.865764]
[1673411281831,0.111,17411.0,17410.0,1.400764]
[1673411282082,0.111,17411.0,17410.0,1.700764]
[1673411282561,0.111,17411.0,17410.0,1.400764]
[1673411286312,0.111,17411.0,17410.0,1.52136647]
[1673411286820,0.111,17411.0,17410.0,0.94698447]
[1673411292108,0.111,17411.0,17410.0,0.37260247]
[1673411297484,0.11093898,17411.0,17410.0,0.37260247]
[1673411301712,0.28308381,17411.0,17410.0,0.37260247]
[1673411301960,0.28308381,17411.0,17410.0,0.54467746]
[1673411309327,0.11093898,17411.0,17410.0,0.54467746]
[1673411309821,0.11093898,17411.0,17410.0,0.29467746]
[1673411310544,0.11093898,17411.0,17410.0,0.86905946]
[1673411310753,0.11093898,17411.0,17410.0,1.1267234]
[1673411311049,0.11093898,17411.0,17410.0,0.86905946]
[1673411311557,0.11093898,17411.0,17410.0,1.1267234]
[1673411312053,0.11093898,17411.0,17410.0,0.86905946]
[1673411312554,0.11093898,17411.0,17410.0,1.1267234]
[1673411313048,0.28308381,17411.0,17410.0,0.86905946]
[1673411316656,0.26750381,17411.0,17410.0,0.86905946]
[1673411318200,0.26750381,17411.0,17410.0,0.86920896]
[1673411320664,0.09535898,17411.0,17410.0,0.86920896]
[1673411321664,0.26750381,17411.0,17410.0,0.86920896]
[1673411323631,0.09535898,17411.0,17410.0,0.86920896]
[1673411323890,0.26750381,17411.0,17410.0,0.86920896]
[1673411324165,0.09535898,17411.0,17410.0,0.86920896]
[1673411324409,0.09535898,17411.0,17410.0,1.1268729]
[1673411326162,0.26750381,17411.0,17410.0,1.1268729]
[1673411326402,0.09535898,17411.0,17410.0,1.1268729]
[1673411326925,0.09535898,17411.0,17410.0,1.37272003]
[1673411327427,0.09535898,17411.0,17410.0,1.1268729]
[1673411327682,0.26750381,17411.0,17410.0,1.1268729]
[1673411327922,0.09535898,17411.0,17410.0,1.1268729]
[1673411329178,0.26750381,17411.0,17410.0,1.1268729]
[1673411329915,0.26750381,17411.0,17410.0,0.86920896]
[1673411330158,0.26750381,17411.0,17410.0,1.1268729]
[1673411330409,0.26750381,17411.0,17410.0,0.86905946]
[1673411335088,0.26750381,17411.0,17410.0,1.1267234]
[1673411335840,0.56750381,17411.0,17410.0,1.12619217]
[1673411336095,0.26750381,17411.0,17410.0,1.12619217]
[1673411336336,0.26750381,17411.0,17410.0,0.86852823]
[1673411336577,0.26750381,17411.0,17410.0,1.12619217]
[1673411337369,0.26750381,17411.0,17410.0,0.86852823]
[1673411337622,0.26750381,17411.0,17410.0,1.12619217]
[1673411337868,0.26750381,17411.0,17410.0,0.86852823]
[1673411338628,0.26750381,17411.0,17410.0,0.29414623]
[1673411338629,0.9819649,17411.0,17410.0,0.29414623]
[1673411338875,1.24013312,17411.0,17410.0,0.12207124]
[1673411341943,0.9819649,17411.0,17410.0,0.12207124]
[1673411342187,0.9819649,17411.0,17410.0,0.29414623]
[1673411342447,0.9819649,17411.0,17410.0,0.29429573]
[1673411342702,0.9819649,17411.0,17410.0,0.12222074]
[1673411342929,0.9819649,17411.0,17410.0,0.29414623]
[1673411343459,0.9819649,17411.0,17410.0,0.29429573]
[1673411344475,0.9819649,17411.0,17410.0,0.29414623]
[1673411360545,0.9819649,17411.0,17410.0,0.12207124]
[1673411360546,1.54013312,17411.0,17410.0,0.12207124]
[1673411361311,1.24013312,17411.0,17410.0,0.12207124]